[Event "Live Chess"]
[Site "Chess.com"]
[Date "2010.12.13"]
[Round "-"]
[White "hipposcottimus"]
[Black "mariano_beatles"]
[Result "1-0"]
[CurrentPosition "7r/p2Q1pk1/5p1p/1B2p3/1P6/8/PP3PPP/R3K2R b KQ -"]
[Timezone "UTC"]
[ECO "B01"]
[ECOUrl "https://www.chess.com/openings/Scandinavian-Defense-Mieses-Kotrc-Variation-3.Nc3-Qd8-4.Nf3"]
[UTCDate "2010.12.13"]
[UTCTime "04:29:50"]
[WhiteElo "1442"]
[BlackElo "1230"]
[TimeControl "600"]
[Termination "hipposcottimus won by resignation"]
[StartTime "04:29:50"]
[EndDate "2010.12.13"]
[EndTime "04:37:03"]
[Link "https://www.chess.com/game/live/76766605"]

1. e4 {[%clk 0:10:00]} 1... d5 {[%clk 0:10:00]} 2. exd5 {[%clk 0:09:57.5]} 2... Qxd5 {[%clk 0:09:57.8]} 3. Nc3 {[%clk 0:09:56]} 3... Qd8 {[%clk 0:09:55.7]} 4. Nf3 {[%clk 0:09:52.3]} 4... Nc6 {[%clk 0:09:55.2]} 5. d4 {[%clk 0:09:50.5]} 5... Bg4 {[%clk 0:09:46.5]} 6. Be3 {[%clk 0:09:40.6]} 6... Bxf3 {[%clk 0:09:36.4]} 7. Qxf3 {[%clk 0:09:03.1]} 7... e5 {[%clk 0:09:32.5]} 8. d5 {[%clk 0:08:55.2]} 8... Nf6 {[%clk 0:09:29.3]} 9. Bg5 {[%clk 0:08:45.7]} 9... h6 {[%clk 0:09:26.4]} 10. Bxf6 {[%clk 0:08:35.1]} 10... gxf6 {[%clk 0:09:22.1]} 11. dxc6 {[%clk 0:08:32.6]} 11... bxc6 {[%clk 0:09:13]} 12. Qxc6+ {[%clk 0:08:29.1]} 12... Ke7 {[%clk 0:09:11.1]} 13. Nd5+ {[%clk 0:08:21]} 13... Qxd5 {[%clk 0:09:04.1]} 14. Qxd5 {[%clk 0:08:20.2]} 14... Rd8 {[%clk 0:06:29.6]} 15. Qc5+ {[%clk 0:08:06.9]} 15... Ke8 {[%clk 0:06:17.6]} 16. Bb5+ {[%clk 0:08:00.1]} 16... Rd7 {[%clk 0:05:58]} 17. Qxc7 {[%clk 0:07:51.7]} 17... Bb4+ {[%clk 0:05:53.5]} 18. c3 {[%clk 0:07:44.6]} 18... Kf8 {[%clk 0:05:36.9]} 19. Qxd7 {[%clk 0:07:30.3]} 19... Kg7 {[%clk 0:05:32.1]} 20. cxb4 {[%clk 0:07:25.6]} 1-0

[Event "Live Chess"]
[Site "Chess.com"]
[Date "2010.12.13"]
[Round "-"]
[White "dickensian"]
[Black "hipposcottimus"]
[Result "0-1"]
[CurrentPosition "7r/2p2pp1/4p3/6k1/2P4p/3r1P2/P6P/2R1K3 w - -"]
[Timezone "UTC"]
[ECO "C10"]
[ECOUrl "https://www.chess.com/openings/French-Defense-Rubinstein-Variation"]
[UTCDate "2010.12.13"]
[UTCTime "03:34:14"]
[WhiteElo "1469"]
[BlackElo "1438"]
[TimeControl "120+12"]
[Termination "hipposcottimus won by resignation"]
[StartTime "03:34:14"]
[EndDate "2010.12.13"]
[EndTime "03:47:54"]
[Link "https://www.chess.com/game/live/76755772"]

1. d4 {[%clk 0:02:00]} 1... d5 {[%clk 0:02:00]} 2. e4 {[%clk 0:02:10]} 2... dxe4 {[%clk 0:02:07.5]} 3. Nc3 {[%clk 0:02:20.2]} 3... e6 {[%clk 0:02:15.5]} 4. f3 {[%clk 0:02:30.2]} 4... Bb4 {[%clk 0:02:24.8]} 5. Be3 {[%clk 0:02:36.2]} 5... Bxc3+ {[%clk 0:02:30.1]} 6. bxc3 {[%clk 0:02:44.9]} 6... Nf6 {[%clk 0:02:41.3]} 7. fxe4 {[%clk 0:02:53.4]} 7... Nxe4 {[%clk 0:02:50.7]} 8. Nf3 {[%clk 0:03:01.6]} 8... Nxc3 {[%clk 0:02:53.6]} 9. Qd3 {[%clk 0:03:11.4]} 9... Nd5 {[%clk 0:03:03.7]} 10. Bd2 {[%clk 0:03:08.1]} 10... Nc6 {[%clk 0:03:07.3]} 11. c4 {[%clk 0:03:17.4]} 11... Ndb4 {[%clk 0:03:09.6]} 12. Qb3 {[%clk 0:03:15.3]} 12... Nxd4 {[%clk 0:02:50.9]} 13. Nxd4 {[%clk 0:03:08.9]} 13... Qxd4 {[%clk 0:02:59.2]} 14. Qxb4 {[%clk 0:03:11.7]} 14... Qxa1+ {[%clk 0:03:08.2]} 15. Kf2 {[%clk 0:03:04.1]} 15... Qd4+ {[%clk 0:03:13]} 16. Be3 {[%clk 0:03:13.2]} 16... Qe4 {[%clk 0:03:14.9]} 17. Be2 {[%clk 0:03:19.3]} 17... Bd7 {[%clk 0:03:06.4]} 18. Bf3 {[%clk 0:03:23.8]} 18... Qf5 {[%clk 0:03:09.6]} 19. Re1 {[%clk 0:03:21.9]} 19... Bc6 {[%clk 0:03:17.4]} 20. Ke2 {[%clk 0:03:21.9]} 20... Bxf3+ {[%clk 0:03:26.4]} 21. gxf3 {[%clk 0:03:32]} 21... O-O-O {[%clk 0:03:24.4]} 22. Bxa7 {[%clk 0:03:39.3]} 22... Qd3+ {[%clk 0:03:27.7]} 23. Kf2 {[%clk 0:03:39.8]} 23... h5 {[%clk 0:02:59.9]} 24. Be3 {[%clk 0:03:35.9]} 24... h4 {[%clk 0:02:59.5]} 25. Rb1 {[%clk 0:03:34.4]} 25... Qc2+ {[%clk 0:03:02.5]} 26. Ke1 {[%clk 0:03:09.3]} 26... Rd3 {[%clk 0:02:19.4]} 27. Qxb7+ {[%clk 0:03:13.9]} 27... Kd7 {[%clk 0:02:28.4]} 28. Qb5+ {[%clk 0:03:07.3]} 28... Ke7 {[%clk 0:02:36]} 29. Qc5+ {[%clk 0:02:58.7]} 29... Kd7 {[%clk 0:02:07.7]} 30. Rc1 {[%clk 0:02:56]} 30... Qg2 {[%clk 0:01:25]} 31. Qb5+ {[%clk 0:02:43.6]} 31... Ke7 {[%clk 0:01:30.9]} 32. Qc5+ {[%clk 0:02:36.7]} 32... Kf6 {[%clk 0:01:31.9]} 33. Qg5+ {[%clk 0:02:11.8]} 33... Qxg5 {[%clk 0:01:40.8]} 34. Bxg5+ {[%clk 0:02:21]} 34... Kxg5 {[%clk 0:01:52.5]} 0-1

[Event "Live Chess"]
[Site "Chess.com"]
[Date "2010.12.13"]
[Round "-"]
[White "knightlord"]
[Black "hipposcottimus"]
[Result "0-1"]
[CurrentPosition "6k1/p4ppp/8/N2r4/3n4/1b4P1/1P3P1P/3R2K1 w - -"]
[Timezone "UTC"]
[ECO "C20"]
[ECOUrl "https://www.chess.com/openings/Kings-Pawn-Opening-MacLeod-Attack-2...d5"]
[UTCDate "2010.12.13"]
[UTCTime "02:42:11"]
[WhiteElo "1461"]
[BlackElo "1620"]
[TimeControl "60"]
[Termination "hipposcottimus won on time"]
[StartTime "02:42:11"]
[EndDate "2010.12.13"]
[EndTime "02:44:25"]
[Link "https://www.chess.com/game/live/76745105"]

1. e4 {[%clk 0:01:00]} 1... e5 {[%clk 0:01:00]} 2. c3 {[%clk 0:00:57.6]} 2... d5 {[%clk 0:00:58.6]} 3. Qb3 {[%clk 0:00:56.9]} 3... Bd6 {[%clk 0:00:56.5]} 4. Nf3 {[%clk 0:00:55.4]} 4... Nf6 {[%clk 0:00:56.1]} 5. Bb5+ {[%clk 0:00:53]} 5... c6 {[%clk 0:00:54.4]} 6. Bd3 {[%clk 0:00:48.6]} 6... dxe4 {[%clk 0:00:50.5]} 7. Bxe4 {[%clk 0:00:47.5]} 7... Nxe4 {[%clk 0:00:48.8]} 8. O-O {[%clk 0:00:45]} 8... Nf6 {[%clk 0:00:47.4]} 9. d4 {[%clk 0:00:44]} 9... O-O {[%clk 0:00:46.8]} 10. dxe5 {[%clk 0:00:42.5]} 10... Be6 {[%clk 0:00:44.5]} 11. Qxb7 {[%clk 0:00:38.9]} 11... Nbd7 {[%clk 0:00:35.8]} 12. exd6 {[%clk 0:00:37.1]} 12... Nb6 {[%clk 0:00:32.7]} 13. Qc7 {[%clk 0:00:33.9]} 13... Bd7 {[%clk 0:00:31.8]} 14. Qxd8 {[%clk 0:00:32.7]} 14... Raxd8 {[%clk 0:00:31.1]} 15. Rd1 {[%clk 0:00:30.8]} 15... Ne4 {[%clk 0:00:27.9]} 16. Bf4 {[%clk 0:00:27.8]} 16... Nd5 {[%clk 0:00:26.7]} 17. c4 {[%clk 0:00:26.1]} 17... Nxf4 {[%clk 0:00:22.7]} 18. g3 {[%clk 0:00:23.4]} 18... Ne6 {[%clk 0:00:21.8]} 19. Re1 {[%clk 0:00:20]} 19... Nxd6 {[%clk 0:00:19.3]} 20. Ne5 {[%clk 0:00:19.1]} 20... Nf5 {[%clk 0:00:17]} 21. Nc3 {[%clk 0:00:18.3]} 21... Bc8 {[%clk 0:00:15.6]} 22. Ne4 {[%clk 0:00:17.3]} 22... Nfd4 {[%clk 0:00:14.9]} 23. Rad1 {[%clk 0:00:15.6]} 23... Nc2 {[%clk 0:00:13.9]} 24. Rxd8 {[%clk 0:00:14.5]} 24... Rxd8 {[%clk 0:00:13.6]} 25. Rc1 {[%clk 0:00:13]} 25... Ncd4 {[%clk 0:00:12.6]} 26. Nxc6 {[%clk 0:00:11.5]} 26... Rd7 {[%clk 0:00:09.8]} 27. Nxd4 {[%clk 0:00:10.4]} 27... Nxd4 {[%clk 0:00:09.1]} 28. Rd1 {[%clk 0:00:10]} 28... Bb7 {[%clk 0:00:07.5]} 29. Nc3 {[%clk 0:00:08.6]} 29... Ba6 {[%clk 0:00:05.7]} 30. Ne4 {[%clk 0:00:07.1]} 30... Bxc4 {[%clk 0:00:05.2]} 31. Nc5 {[%clk 0:00:06.1]} 31... Rd5 {[%clk 0:00:02.9]} 32. Nb7 {[%clk 0:00:02.8]} 32... Bxa2 {[%clk 0:00:02.6]} 33. Na5 {[%clk 0:00:00.5]} 33... Bb3 {[%clk 0:00:02.2]} 0-1

[Event "Live Chess"]
[Site "Chess.com"]
[Date "2010.12.13"]
[Round "-"]
[White "hipposcottimus"]
[Black "knightlord"]
[Result "1-0"]
[CurrentPosition "8/p1p3pp/2p2p2/5N2/2k2P2/2P5/PP4PP/4N1K1 b - -"]
[Timezone "UTC"]
[ECO "B01"]
[ECOUrl "https://www.chess.com/openings/Scandinavian-Defense-Mieses-Kotrc-Variation-3.Nc3"]
[UTCDate "2010.12.13"]
[UTCTime "02:39:12"]
[WhiteElo "1615"]
[BlackElo "1466"]
[TimeControl "60"]
[Termination "hipposcottimus won on time"]
[StartTime "02:39:12"]
[EndDate "2010.12.13"]
[EndTime "02:41:09"]
[Link "https://www.chess.com/game/live/76744568"]

1. e4 {[%clk 0:01:00]} 1... d5 {[%clk 0:01:00]} 2. exd5 {[%clk 0:00:58.3]} 2... Qxd5 {[%clk 0:00:59.7]} 3. Nc3 {[%clk 0:00:57.9]} 3... Qe6+ {[%clk 0:00:57.6]} 4. Be2 {[%clk 0:00:57.6]} 4... Nf6 {[%clk 0:00:56.1]} 5. d4 {[%clk 0:00:56.7]} 5... Ng4 {[%clk 0:00:52.9]} 6. d5 {[%clk 0:00:51.4]} 6... Qf6 {[%clk 0:00:48.5]} 7. Bxg4 {[%clk 0:00:49.8]} 7... Qe5+ {[%clk 0:00:46.1]} 8. Be2 {[%clk 0:00:47.8]} 8... Bg4 {[%clk 0:00:40.5]} 9. Be3 {[%clk 0:00:43.7]} 9... Bxe2 {[%clk 0:00:39.1]} 10. Ngxe2 {[%clk 0:00:43.4]} 10... Na6 {[%clk 0:00:36.2]} 11. O-O {[%clk 0:00:42.3]} 11... Nb4 {[%clk 0:00:35.1]} 12. Bd4 {[%clk 0:00:40.9]} 12... Qg5 {[%clk 0:00:31.6]} 13. Ne4 {[%clk 0:00:35.9]} 13... Qf5 {[%clk 0:00:24.8]} 14. N2g3 {[%clk 0:00:35.5]} 14... Qd7 {[%clk 0:00:21.3]} 15. c3 {[%clk 0:00:34.1]} 15... Nc6 {[%clk 0:00:19.2]} 16. dxc6 {[%clk 0:00:31.6]} 16... bxc6 {[%clk 0:00:18.2]} 17. Re1 {[%clk 0:00:26.4]} 17... e5 {[%clk 0:00:15.7]} 18. Be3 {[%clk 0:00:25.8]} 18... Qxd1 {[%clk 0:00:14.2]} 19. Raxd1 {[%clk 0:00:25.5]} 19... Be7 {[%clk 0:00:11.5]} 20. Bc5 {[%clk 0:00:25]} 20... Bxc5 {[%clk 0:00:10]} 21. Nxc5 {[%clk 0:00:24.7]} 21... O-O {[%clk 0:00:09.6]} 22. Nd7 {[%clk 0:00:23.3]} 22... Rfd8 {[%clk 0:00:08.5]} 23. Nxe5 {[%clk 0:00:23]} 23... Rxd1 {[%clk 0:00:07.4]} 24. Rxd1 {[%clk 0:00:22.8]} 24... Re8 {[%clk 0:00:06.8]} 25. Re1 {[%clk 0:00:21.7]} 25... f6 {[%clk 0:00:05.5]} 26. Nf3 {[%clk 0:00:19.7]} 26... Rxe1+ {[%clk 0:00:03.9]} 27. Nxe1 {[%clk 0:00:19.5]} 27... Kf7 {[%clk 0:00:03.3]} 28. f4 {[%clk 0:00:18.9]} 28... Ke6 {[%clk 0:00:02.8]} 29. Ne2 {[%clk 0:00:18.6]} 29... Kd5 {[%clk 0:00:02.2]} 30. Nd4 {[%clk 0:00:18]} 30... Kc4 {[%clk 0:00:01.2]} 31. Nf5 {[%clk 0:00:17.5]} 1-0

[Event "Live Chess"]
[Site "Chess.com"]
[Date "2010.12.13"]
[Round "-"]
[White "knightlord"]
[Black "hipposcottimus"]
[Result "0-1"]
[CurrentPosition "6k1/p4pBp/8/8/2b5/P7/P2q1PPP/6K1 b - -"]
[Timezone "UTC"]
[ECO "C23"]
[ECOUrl "https://www.chess.com/openings/Bishops-Opening-2...Nc6"]
[UTCDate "2010.12.13"]
[UTCTime "02:37:33"]
[WhiteElo "1471"]
[BlackElo "1610"]
[TimeControl "60"]
[Termination "hipposcottimus won by resignation"]
[StartTime "02:37:33"]
[EndDate "2010.12.13"]
[EndTime "02:38:57"]
[Link "https://www.chess.com/game/live/76744282"]

1. e4 {[%clk 0:01:00]} 1... e5 {[%clk 0:01:00]} 2. Bc4 {[%clk 0:00:59.1]} 2... Nc6 {[%clk 0:00:59.3]} 3. Qg4 {[%clk 0:00:57.6]} 3... Nf6 {[%clk 0:00:58.9]} 4. Qf3 {[%clk 0:00:56.3]} 4... Nd4 {[%clk 0:00:57.9]} 5. Qd3 {[%clk 0:00:54.4]} 5... d5 {[%clk 0:00:56.9]} 6. c3 {[%clk 0:00:51.6]} 6... dxc4 {[%clk 0:00:54]} 7. cxd4 {[%clk 0:00:51.1]} 7... exd4 {[%clk 0:00:46.9]} 8. Qxc4 {[%clk 0:00:49]} 8... Be6 {[%clk 0:00:45]} 9. Qb5+ {[%clk 0:00:47.3]} 9... c6 {[%clk 0:00:41.4]} 10. Qxb7 {[%clk 0:00:45.9]} 10... Nxe4 {[%clk 0:00:40.8]} 11. Qxc6+ {[%clk 0:00:44.8]} 11... Bd7 {[%clk 0:00:39]} 12. Qxe4+ {[%clk 0:00:44]} 12... Be7 {[%clk 0:00:38.8]} 13. Qe5 {[%clk 0:00:40.9]} 13... O-O {[%clk 0:00:38.5]} 14. Nf3 {[%clk 0:00:38.8]} 14... Re8 {[%clk 0:00:38.2]} 15. Nxd4 {[%clk 0:00:37.6]} 15... Bf6 {[%clk 0:00:37.9]} 16. Ne6 {[%clk 0:00:35.3]} 16... Rxe6 {[%clk 0:00:36.1]} 17. Qxe6 {[%clk 0:00:34.7]} 17... Bxe6 {[%clk 0:00:34.6]} 18. O-O {[%clk 0:00:34.4]} 18... Rb8 {[%clk 0:00:30.2]} 19. Na3 {[%clk 0:00:33.3]} 19... Be7 {[%clk 0:00:27.9]} 20. Rb1 {[%clk 0:00:32.3]} 20... Bxa3 {[%clk 0:00:26]} 21. bxa3 {[%clk 0:00:31.3]} 21... Rxb1 {[%clk 0:00:25.7]} 22. Bb2 {[%clk 0:00:30.3]} 22... Rxf1+ {[%clk 0:00:24.7]} 23. Kxf1 {[%clk 0:00:29.7]} 23... Qxd2 {[%clk 0:00:23.4]} 24. Bxg7 {[%clk 0:00:28.5]} 24... Bc4+ {[%clk 0:00:22.6]} 25. Kg1 {[%clk 0:00:26.4]} 0-1

[Event "Live Chess"]
[Site "Chess.com"]
[Date "2010.12.13"]
[Round "-"]
[White "hipposcottimus"]
[Black "AeJai"]
[Result "0-1"]
[CurrentPosition "8/pkn5/6N1/2Pp4/1p4p1/1P6/P2p1PPP/5K2 w - -"]
[Timezone "UTC"]
[ECO "C00"]
[ECOUrl "https://www.chess.com/openings/French-Defense-Normal-Variation"]
[UTCDate "2010.12.13"]
[UTCTime "02:33:14"]
[WhiteElo "1605"]
[BlackElo "1617"]
[TimeControl "60"]
[Termination "AeJai won on time"]
[StartTime "02:33:14"]
[EndDate "2010.12.13"]
[EndTime "02:35:23"]
[Link "https://www.chess.com/game/live/76743399"]

1. e4 {[%clk 0:01:00]} 1... e6 {[%clk 0:01:00]} 2. d4 {[%clk 0:00:58.3]} 2... c6 {[%clk 0:00:57.9]} 3. c4 {[%clk 0:00:56.2]} 3... b5 {[%clk 0:00:57.9]} 4. Nf3 {[%clk 0:00:54.4]} 4... Ba6 {[%clk 0:00:56.1]} 5. Nbd2 {[%clk 0:00:52.3]} 5... Qa5 {[%clk 0:00:54.8]} 6. Be2 {[%clk 0:00:48.9]} 6... b4 {[%clk 0:00:53]} 7. O-O {[%clk 0:00:47.7]} 7... d5 {[%clk 0:00:52.5]} 8. Nb3 {[%clk 0:00:46.7]} 8... Qa4 {[%clk 0:00:50]} 9. c5 {[%clk 0:00:41]} 9... Bxe2 {[%clk 0:00:48.1]} 10. Qxe2 {[%clk 0:00:40.4]} 10... Na6 {[%clk 0:00:45.4]} 11. exd5 {[%clk 0:00:35.7]} 11... cxd5 {[%clk 0:00:43.5]} 12. Ne5 {[%clk 0:00:34.2]} 12... Nh6 {[%clk 0:00:39.6]} 13. Qf3 {[%clk 0:00:33.6]} 13... f6 {[%clk 0:00:38]} 14. Bxh6 {[%clk 0:00:32.4]} 14... fxe5 {[%clk 0:00:35.9]} 15. Bg5 {[%clk 0:00:27.3]} 15... h6 {[%clk 0:00:34.1]} 16. Bh4 {[%clk 0:00:24.5]} 16... Be7 {[%clk 0:00:33.1]} 17. Bg3 {[%clk 0:00:24]} 17... O-O-O {[%clk 0:00:31.1]} 18. Bxe5 {[%clk 0:00:21.6]} 18... Bf6 {[%clk 0:00:31.1]} 19. Bxf6 {[%clk 0:00:18.7]} 19... gxf6 {[%clk 0:00:31.1]} 20. Qxf6 {[%clk 0:00:18.4]} 20... Rdf8 {[%clk 0:00:30.3]} 21. Qe5 {[%clk 0:00:17.4]} 21... Qc6 {[%clk 0:00:28.7]} 22. Na5 {[%clk 0:00:15.7]} 22... Qc7 {[%clk 0:00:26.3]} 23. Rae1 {[%clk 0:00:13.1]} 23... Qxe5 {[%clk 0:00:24.5]} 24. Rxe5 {[%clk 0:00:11.9]} 24... Rf5 {[%clk 0:00:22.9]} 25. Rfe1 {[%clk 0:00:11.6]} 25... Rxe5 {[%clk 0:00:21.4]} 26. Rxe5 {[%clk 0:00:11.3]} 26... Nc7 {[%clk 0:00:20.2]} 27. Nc6 {[%clk 0:00:09.7]} 27... Kb7 {[%clk 0:00:18.7]} 28. Ne7 {[%clk 0:00:08.5]} 28... Re8 {[%clk 0:00:15.7]} 29. Ng6 {[%clk 0:00:05.5]} 29... Rg8 {[%clk 0:00:13.8]} 30. Nh4 {[%clk 0:00:04.3]} 30... Rg5 {[%clk 0:00:12.9]} 31. Rxg5 {[%clk 0:00:01.6]} 31... hxg5 {[%clk 0:00:12.9]} 32. Nf3 {[%clk 0:00:01.4]} 32... g4 {[%clk 0:00:12.2]} 33. Nh4 {[%clk 0:00:01]} 33... e5 {[%clk 0:00:11.3]} 34. Ng6 {[%clk 0:00:00.7]} 34... exd4 {[%clk 0:00:10.1]} 35. b3 {[%clk 0:00:00.5]} 35... d3 {[%clk 0:00:08.9]} 36. Kf1 {[%clk 0:00:00.3]} 36... d2 {[%clk 0:00:08.9]} 0-1

[Event "Live Chess"]
[Site "Chess.com"]
[Date "2010.12.13"]
[Round "-"]
[White "AeJai"]
[Black "hipposcottimus"]
[Result "0-1"]
[CurrentPosition "2k5/ppp3pp/8/8/8/7P/P2r2q1/R6K w - -"]
[Timezone "UTC"]
[ECO "C44"]
[ECOUrl "https://www.chess.com/openings/Ponziani-Opening-Jaenisch-Counterattack"]
[UTCDate "2010.12.13"]
[UTCTime "02:31:22"]
[WhiteElo "1609"]
[BlackElo "1613"]
[TimeControl "60"]
[Termination "hipposcottimus won by checkmate"]
[StartTime "02:31:22"]
[EndDate "2010.12.13"]
[EndTime "02:32:45"]
[Link "https://www.chess.com/game/live/76742965"]

1. e4 {[%clk 0:01:00]} 1... e5 {[%clk 0:01:00]} 2. Nf3 {[%clk 0:00:58.8]} 2... Nc6 {[%clk 0:00:59.6]} 3. c3 {[%clk 0:00:58.4]} 3... Nf6 {[%clk 0:00:59.3]} 4. b4 {[%clk 0:00:57.7]} 4... d5 {[%clk 0:00:59]} 5. exd5 {[%clk 0:00:55.6]} 5... e4 {[%clk 0:00:57.4]} 6. Ba3 {[%clk 0:00:55.6]} 6... exf3 {[%clk 0:00:56.7]} 7. gxf3 {[%clk 0:00:53.9]} 7... Nxd5 {[%clk 0:00:54.6]} 8. Qa4 {[%clk 0:00:52.6]} 8... Bd7 {[%clk 0:00:52.2]} 9. b5 {[%clk 0:00:51.9]} 9... Nb6 {[%clk 0:00:49.5]} 10. bxc6 {[%clk 0:00:51.9]} 10... Nxa4 {[%clk 0:00:48.1]} 11. cxd7+ {[%clk 0:00:51.9]} 11... Qxd7 {[%clk 0:00:47.8]} 12. Bxf8 {[%clk 0:00:50.5]} 12... Rxf8 {[%clk 0:00:46.2]} 13. Be2 {[%clk 0:00:48.3]} 13... O-O-O {[%clk 0:00:45.4]} 14. Na3 {[%clk 0:00:46.8]} 14... Qxd2+ {[%clk 0:00:43.3]} 15. Kf1 {[%clk 0:00:44.3]} 15... Nxc3 {[%clk 0:00:41.3]} 16. Nc4 {[%clk 0:00:42.8]} 16... Qxe2+ {[%clk 0:00:35.9]} 17. Kg2 {[%clk 0:00:41.5]} 17... Qe6 {[%clk 0:00:31.9]} 18. Ne3 {[%clk 0:00:38.4]} 18... Qg6+ {[%clk 0:00:30.9]} 19. Ng4 {[%clk 0:00:36.5]} 19... Nd5 {[%clk 0:00:30.1]} 20. Rhd1 {[%clk 0:00:35.8]} 20... f5 {[%clk 0:00:29.2]} 21. Rxd5 {[%clk 0:00:33.5]} 21... fxg4 {[%clk 0:00:28.9]} 22. Rxd8+ {[%clk 0:00:31.4]} 22... Rxd8 {[%clk 0:00:28.6]} 23. fxg4 {[%clk 0:00:30.4]} 23... Qxg4+ {[%clk 0:00:27.5]} 24. Kf1 {[%clk 0:00:30.4]} 24... Rd2 {[%clk 0:00:26.5]} 25. h3 {[%clk 0:00:29]} 25... Qe2+ {[%clk 0:00:26]} 26. Kg2 {[%clk 0:00:27.4]} 26... Qxf2+ {[%clk 0:00:25.7]} 27. Kh1 {[%clk 0:00:25]} 27... Qg2# {[%clk 0:00:25.5]} 0-1

[Event "Live Chess"]
[Site "Chess.com"]
[Date "2010.12.13"]
[Round "-"]
[White "hipposcottimus"]
[Black "Jonani"]
[Result "0-1"]
[CurrentPosition "8/8/7p/2kp4/1qp5/K7/8/1q6 w - -"]
[Timezone "UTC"]
[ECO "C00"]
[ECOUrl "https://www.chess.com/openings/French-Defense-Normal-Variation"]
[UTCDate "2010.12.13"]
[UTCTime "02:28:01"]
[WhiteElo "1605"]
[BlackElo "1490"]
[TimeControl "60"]
[Termination "Jonani won by checkmate"]
[StartTime "02:28:01"]
[EndDate "2010.12.13"]
[EndTime "02:30:21"]
[Link "https://www.chess.com/game/live/76742268"]

1. e4 {[%clk 0:01:00]} 1... e6 {[%clk 0:01:00]} 2. d4 {[%clk 0:00:58.1]} 2... Be7 {[%clk 0:01:00]} 3. Nf3 {[%clk 0:00:57.6]} 3... b6 {[%clk 0:01:00]} 4. e5 {[%clk 0:00:57.3]} 4... Bb7 {[%clk 0:01:00]} 5. c4 {[%clk 0:00:56.8]} 5... Bxf3 {[%clk 0:00:59]} 6. Qxf3 {[%clk 0:00:56.5]} 6... Nc6 {[%clk 0:00:58.3]} 7. Be3 {[%clk 0:00:54.1]} 7... Bb4+ {[%clk 0:00:57.2]} 8. Nc3 {[%clk 0:00:50.9]} 8... Bxc3+ {[%clk 0:00:56.3]} 9. bxc3 {[%clk 0:00:50.6]} 9... Na5 {[%clk 0:00:54.9]} 10. Be2 {[%clk 0:00:47.6]} 10... Qe7 {[%clk 0:00:50.3]} 11. O-O {[%clk 0:00:47.3]} 11... g6 {[%clk 0:00:48.9]} 12. d5 {[%clk 0:00:46.9]} 12... exd5 {[%clk 0:00:47.2]} 13. cxd5 {[%clk 0:00:45.6]} 13... Qxe5 {[%clk 0:00:43.2]} 14. Bf4 {[%clk 0:00:45.3]} 14... Qxc3 {[%clk 0:00:41.8]} 15. Rfe1 {[%clk 0:00:43.2]} 15... Qxf3 {[%clk 0:00:38.8]} 16. Bxf3+ {[%clk 0:00:42.7]} 16... Kd8 {[%clk 0:00:36.9]} 17. Be5 {[%clk 0:00:42.3]} 17... f6 {[%clk 0:00:35.6]} 18. Bd4 {[%clk 0:00:41.5]} 18... Nc4 {[%clk 0:00:34.2]} 19. Bc3 {[%clk 0:00:41]} 19... Nd6 {[%clk 0:00:31.7]} 20. Bd1 {[%clk 0:00:37.7]} 20... c5 {[%clk 0:00:30.8]} 21. Re3 {[%clk 0:00:37.2]} 21... Kc7 {[%clk 0:00:30]} 22. Rf3 {[%clk 0:00:36.9]} 22... f5 {[%clk 0:00:28.7]} 23. Bd2 {[%clk 0:00:34.1]} 23... Ne7 {[%clk 0:00:27.5]} 24. Bf4 {[%clk 0:00:33.6]} 24... Nxd5 {[%clk 0:00:26.1]} 25. Bxd6+ {[%clk 0:00:32]} 25... Kxd6 {[%clk 0:00:24.8]} 26. Rd3 {[%clk 0:00:31.8]} 26... Rhe8 {[%clk 0:00:23.1]} 27. Bf3 {[%clk 0:00:31.2]} 27... Re5 {[%clk 0:00:21.7]} 28. Kf1 {[%clk 0:00:29.2]} 28... Rae8 {[%clk 0:00:20.7]} 29. Rdd1 {[%clk 0:00:26.3]} 29... Kc6 {[%clk 0:00:19.7]} 30. Bxd5+ {[%clk 0:00:24.6]} 30... Rxd5 {[%clk 0:00:18.3]} 31. Rxd5 {[%clk 0:00:23.3]} 31... Kxd5 {[%clk 0:00:17.8]} 32. Rd1+ {[%clk 0:00:23]} 32... Kc6 {[%clk 0:00:17.8]} 33. Re1 {[%clk 0:00:22.3]} 33... Rxe1+ {[%clk 0:00:16.2]} 34. Kxe1 {[%clk 0:00:22.1]} 34... b5 {[%clk 0:00:15.8]} 35. Ke2 {[%clk 0:00:21.8]} 35... c4 {[%clk 0:00:15.8]} 36. Kd2 {[%clk 0:00:21.6]} 36... a6 {[%clk 0:00:15.8]} 37. Kc2 {[%clk 0:00:21.3]} 37... a5 {[%clk 0:00:15.8]} 38. a3 {[%clk 0:00:20]} 38... Kc5 {[%clk 0:00:15.8]} 39. Kc3 {[%clk 0:00:19.5]} 39... d6 {[%clk 0:00:15.8]} 40. f3 {[%clk 0:00:18.4]} 40... b4+ {[%clk 0:00:15.1]} 41. axb4+ {[%clk 0:00:17.5]} 41... axb4+ {[%clk 0:00:14.3]} 42. Kc2 {[%clk 0:00:17.3]} 42... b3+ {[%clk 0:00:13.4]} 43. Kc3 {[%clk 0:00:17.1]} 43... d5 {[%clk 0:00:12.2]} 44. g3 {[%clk 0:00:16.4]} 44... g5 {[%clk 0:00:11]} 45. f4 {[%clk 0:00:14.7]} 45... gxf4 {[%clk 0:00:09.9]} 46. g4 {[%clk 0:00:14.3]} 46... h6 {[%clk 0:00:09.7]} 47. gxf5 {[%clk 0:00:13.2]} 47... f3 {[%clk 0:00:08.2]} 48. f6 {[%clk 0:00:12.9]} 48... f2 {[%clk 0:00:08.2]} 49. f7 {[%clk 0:00:12.6]} 49... f1=Q {[%clk 0:00:08.1]} 50. f8=Q+ {[%clk 0:00:11.7]} 50... Qxf8 {[%clk 0:00:06.9]} 51. h3 {[%clk 0:00:10.7]} 51... Qf3+ {[%clk 0:00:06.9]} 52. Kb2 {[%clk 0:00:09.8]} 52... Qxh3 {[%clk 0:00:06.9]} 53. Ka3 {[%clk 0:00:09.3]} 53... Qd3 {[%clk 0:00:06.3]} 54. Kb2 {[%clk 0:00:09]} 54... Qd2+ {[%clk 0:00:04.5]} 55. Ka3 {[%clk 0:00:08.6]} 55... b2 {[%clk 0:00:03.8]} 56. Ka4 {[%clk 0:00:08.4]} 56... b1=Q {[%clk 0:00:03.5]} 57. Ka3 {[%clk 0:00:06.1]} 57... Qdb4# {[%clk 0:00:03.1]} 0-1